fUSD/lending_fUSD_20251127
["ID","MTS","AMOUNT","RATE_DAILY","PERIOD"]
[394986750,1764259970828,308.09,0.00010361,2]
[394986751,1764259971019,308.09,0.00010811,2]
[394986752,1764259971236,308.09,0.00011262,2]
[394986753,1764259971453,308.09,0.00011712,2]
[394986754,1764259971663,308.09,0.00012163,2]
[394986757,1764259971916,308.09,0.00012613,2]
[394986758,1764259972243,308.09,0.00013064,2]
[394986759,1764259972319,308.09,0.00013514,2]
[394986760,1764259972532,308.09,0.00013965,2]
[394986761,1764259972760,308.09,0.00014415,2]
[394986869,1764261019950,-308.09,0.00014866,2]
[394986870,1764261019974,-300.0,0.00014999,2]
[394986871,1764261019997,-300.0,0.00014999,2]
[394986872,1764261020022,-1200.0,0.00014999,2]
[394986873,1764261020045,-150.0,0.00014999,2]
[394986874,1764261020072,-2030.60423229,0.00015,2]
[394986875,1764261020098,-2511.30576771,0.00015,2]
[394986893,1764261032140,-250.0,0.00015,2]
[394986894,1764261032151,-3689.27949218,0.00015,2]
[394986895,1764261032161,-15498.89954154,0.00015,2]
[394986896,1764261032171,-308.09,0.00015316,2]
[394986897,1764261032180,-5523.0,0.000156,3]
[394986898,1764261032191,-308.09,0.00015767,2]
[394986899,1764261032203,-5523.0,0.000159,5]
[394986900,1764261032213,-200.0,0.00015935,2]
[394986901,1764261032223,-12711.62385187,0.00016,4]
[394986902,1764261032232,-150.0,0.00016091,2]
[394986903,1764261032245,-255.0,0.00016124,2]
[394986904,1764261032256,-262.07429092,0.00016197,2]
[394986905,1764261032265,-5000.00797372,0.000162,5]
[394986906,1764261032276,-308.09,0.00016217,2]
[394986907,1764261032286,-195.0,0.00016352,2]
[394986908,1764261032295,-420.0,0.00016416,2]
[394986909,1764261032305,-305.0,0.00016416,2]
[394986910,1764261032314,-2751.0,0.00016438,2]
[394986911,1764261032323,-398.21866764,0.00016465,2]
[394986912,1764261032334,-500.0,0.00016465,2]
[394986913,1764261032343,-500.0,0.00016465,2]
[394986914,1764261032352,-500.0,0.00016465,2]
[394986915,1764261032361,-500.0,0.00016465,2]
[394986916,1764261032371,-500.0,0.00016465,2]
[394986917,1764261032380,-500.0,0.00016465,2]
[394986918,1764261032389,-500.0,0.00016465,2]
[394986919,1764261032398,-500.0,0.00016465,2]
[394986920,1764261032407,-500.0,0.00016465,2]
[394986922,1764261032416,-250.0,0.00016465,2]
[394986924,1764261032425,-500.0,0.00016465,2]
[394986926,1764261032434,-500.0,0.00016465,2]
[394986928,1764261032444,-500.0,0.00016465,2]
[394986930,1764261032453,-500.0,0.00016465,2]
[394986931,1764261032462,-500.0,0.00016465,2]
[394986932,1764261032472,-500.0,0.00016465,2]
[394986933,1764261032481,-399.81239754,0.00016465,2]
[394986935,1764261032492,-500.0,0.00016465,2]
[394986936,1764261032502,-500.0,0.00016465,2]
[394986938,1764261032513,-500.0,0.00016465,2]
[394986940,1764261032522,-500.0,0.00016465,2]
[394986942,1764261032531,-500.0,0.00016465,2]
[394986944,1764261032540,-500.0,0.00016465,2]
[394986946,1764261032550,-500.0,0.00016465,2]
[394986947,1764261032560,-500.0,0.00016465,2]
[394986948,1764261032569,-500.0,0.00016465,2]
[394986949,1764261032578,-500.0,0.00016465,2]
[394986950,1764261032587,-500.0,0.00016465,2]
[394986951,1764261032597,-500.0,0.00016465,2]
[394986952,1764261032606,-500.0,0.00016465,2]
[394986953,1764261032615,-500.0,0.00016465,2]
[394986954,1764261032624,-500.0,0.00016465,2]
[394986955,1764261032633,-500.0,0.00016465,2]
[394986956,1764261032642,-500.0,0.00016465,2]
[394986957,1764261032652,-51352.27508196,0.00016466,2]
[394986958,1764261032664,-7101.54491804,0.00016466,2]
[394986959,1764261032674,-262.07429091,0.0001649,2]
[394986960,1764261032684,-1680.0,0.00016499,2]
[394986961,1764261032693,-1404.71,0.00016651,2]
[394986962,1764261032703,-165.84,0.00016651,2]
[394986963,1764261032712,-308.09,0.00016667,2]
[394986964,1764261032721,-262.07429091,0.00016782,2]
[394986965,1764261032731,-3802.92,0.00016804,2]
[394986966,1764261032742,-200.0,0.00016853,2]
[394986967,1764261032752,-1600.0,0.00016925,2]
[394986968,1764261032762,-503.20529526,0.00016973,2]
[394986969,1764261032771,-500.0,0.00016973,2]
[394986970,1764261032781,-500.0,0.00016973,2]
[394986971,1764261032790,-500.0,0.00016999,2]
[394986972,1764261032800,-163.40027037,0.00016999,2]
[394986973,1764261032809,-588.04202157,0.00016999,2]
[394986974,1764261032821,-8409.27740846,0.00017,2]
[394986975,1764261032832,-504.25,0.00017,2]
[394986976,1764261032855,-2127.37987507,0.00017,2]
[394986987,1764261038494,-6788.67913068,0.00017,2]
[394986989,1764261040198,-749.34154974,0.00017,2]
[394986990,1764261040211,-1886.96989959,0.00017,2]
[394986991,1764261040222,-311.99788605,0.00017,2]
[394986992,1764261040234,-507.6050602,0.00017,2]
[394986993,1764261040246,-284.65500016,0.00017,2]
[394987042,1764261043881,-613.84790354,0.00017,2]
[394987043,1764261043954,-592.09798254,0.00017,2]
[394987044,1764261043965,-236770.38857227,0.00017,2]
[394987045,1764261043975,-250.0,0.00017,2]
[394987046,1764261043995,-262.07429091,0.00017075,2]
[394987047,1764261044007,-545.13835978,0.00017095,7]
[394987048,1764261044017,-308.09,0.00017118,2]
[394987049,1764261044027,-454.683,0.0001714,2]
[394987050,1764261044036,-6503.0,0.0001714,2]
[394987051,1764261044046,-1193.0,0.00017159,2]
[394987052,1764261044056,-909.0,0.00017159,2]
[394987053,1764261044066,-425.0,0.00017339,2]
[394987054,1764261044076,-427.24637793,0.0001753,2]
[394987055,1764261044087,-165.84,0.00017576,2]
[394987056,1764261044096,-222.65612674,0.00017725,2]
[394987057,1764261044106,-778.06,0.00017773,2]
[394987058,1764261044115,-300.43,0.00017798,2]
[394987059,1764261044125,-211.0,0.000179,2]
[394987060,1764261044135,-224.18677791,0.000179,3]
[394987061,1764261044144,-168.0,0.00017901,2]
[394987062,1764261044153,-300.0,0.0001791,2]
[394987063,1764261044163,-200.0,0.0001791,2]
[394987064,1764261044172,-644.9429167,0.00017951,2]
[394987065,1764261044182,-14118.5465201,0.00017951,2]
[394987066,1764261044192,-751.7210376,0.00017951,2]
[394987067,1764261044204,-587.0,0.00017966,2]
[394987068,1764261044215,-422.21970422,0.00017973,2]
[394987069,1764261044224,-500.0,0.00017973,2]
[394987070,1764261044235,-501.60703041,0.00017973,2]
[394987071,1764261044248,-500.0,0.00017973,2]
[394987072,1764261044260,-510.75976153,0.00017973,2]
[394987073,1764261044270,-500.0,0.00017973,2]
[394987074,1764261044281,-500.0,0.00017973,2]
[394987075,1764261044291,-500.0,0.00017973,2]
[394987076,1764261044300,-500.0,0.00017973,2]
[394987077,1764261044310,-300.0,0.0001798,2]
[394987078,1764261044319,-300.0,0.00017988,2]
[394987079,1764261044329,-150.0,0.00017989,2]
[394987080,1764261044339,-150.0,0.00017989,2]
[394987081,1764261044349,-150.0,0.00017989,2]
[394987082,1764261044358,-1173.0,0.00017989,2]
[394987083,1764261044372,-300.0,0.0001799,2]
[394987084,1764261044382,-166.9942298,0.00017999,2]
[394987085,1764261044392,-300.0,0.00017999,2]
[394987086,1764261044402,-301.63725444,0.00017999,2]
[394987087,1764261044412,-3221.0,0.00018,2]
[394987088,1764261044421,-247981.85533608,0.00018,2]
[394987089,1764261044434,-363.37957723,0.00018,2]
[394987098,1764261046221,-262.85717472,0.00017989,2]
[394987099,1764261046231,-291.53372984,0.00018,2]
[394987100,1764261046296,-44693.23298489,0.00018,2]
[394987125,1764261496061,-584.192003,0.00015803,2]
[394987126,1764261496087,-166.66,0.00015882,2]
[394987127,1764261496111,-958.00090337,0.00016045,3]
[394987128,1764261496135,-250.0,0.00016126,2]
[394987129,1764261496160,-195.0,0.00016136,2]
[394987130,1764261496185,-166.66,0.00016217,2]
[394987131,1764261496210,-195.0,0.00016259,2]
[394987132,1764261496234,-300.0,0.00016364,2]
[394987133,1764261496259,-368.48709363,0.00016364,2]
[394987162,1764262032587,158.76,0.00019178,30]
[394987185,1764262232423,-1200.0,0.00016199,2]
[394987186,1764262232433,-150.0,0.000162,2]
[394987187,1764262232443,-150.0,0.000162,2]
[394987188,1764262232454,-150.0,0.000162,2]
[394987189,1764262232466,-150.0,0.000162,2]
[394987190,1764262232476,-150.0,0.000162,2]
[394987191,1764262232488,-150.0,0.000162,2]
[394987192,1764262232499,-150.0,0.000162,2]
[394987193,1764262232509,-150.0,0.000162,2]
[394987194,1764262232519,-300.0,0.00016342,2]
[394987195,1764262232528,-1087.0,0.00016343,2]
[394987196,1764262232538,-500.0,0.00016356,2]
[394987197,1764262232548,-230.0,0.00016364,2]
[394987198,1764262232558,-866.50413284,0.00016364,2]
[394987199,1764262232567,-250.0,0.00016416,2]
[394987200,1764262232578,-4777.54,0.00016438,2]
[394987201,1764262232590,-150.0,0.00016457,2]
[394987202,1764262232599,-166.66,0.00016551,2]
[394987203,1764262232609,-150.0,0.0001656,2]
[394987204,1764262232619,-150.0,0.0001665,2]
[394987205,1764262232631,-150.0,0.0001665,2]
[394987206,1764262232641,-150.0,0.0001665,2]
[394987207,1764262232651,-150.0,0.00016714,2]
[394987208,1764262232662,-150.0,0.00016742,2]
[394987209,1764262232673,-999.0,0.00016766,3]
[394987210,1764262232683,-2000.0,0.00016789,2]
[394987211,1764262232693,-150.0,0.000168,2]
[394987212,1764262232702,-166.66,0.00016886,2]
[394987213,1764262232711,-207.0805,0.000169,2]
[394987214,1764262232731,-597.09424157,0.00016904,2]
[394987215,1764262232742,-150.0,0.0001692,2]
[394987216,1764262232752,-150.0,0.00016971,2]
[394987217,1764262232762,-500.0,0.00016999,2]
[394987219,1764262232772,-500.0,0.00016999,2]
[394987221,1764262232781,-1305.62978185,0.00017,2]
[394987222,1764262232796,-694.37021815,0.00017,2]
[394987223,1764262232806,-150.0,0.000171,2]
[394987224,1764262232816,-150.0,0.000171,2]
[394987225,1764262232827,-150.0,0.000171,2]
[394987226,1764262232837,-150.0,0.000171,2]
[394987227,1764262232847,-150.0,0.000171,2]
[394987228,1764262232858,-166.66,0.0001722,2]
[394987229,1764262232867,-150.0,0.00017229,2]
[394987231,1764262232877,-150.0,0.0001728,2]
[394987232,1764262232887,-150.0,0.000174,2]
[394987234,1764262232897,-823.0,0.0001744,2]
[394987236,1764262232906,-3807.16978183,0.0001744,2]
[394987239,1764262232919,-2695.83021817,0.0001744,2]
[394987240,1764262232929,-527.451,0.0001744,2]
[394987241,1764262232939,-702.2,0.00017452,2]
[394987242,1764262232950,-150.0,0.00017486,2]
[394987243,1764262232959,-427.24637793,0.0001752,2]
[394987244,1764262232970,-150.0,0.0001755,2]
[394987245,1764262232982,-150.0,0.0001755,2]
[394987246,1764262232992,-150.0,0.0001755,2]
[394987247,1764262233002,-166.66,0.00017554,2]
[394987248,1764262233012,-151.0,0.00017563,2]
[394987249,1764262233022,-737.11,0.00017565,2]
[394987250,1764262233032,-63.54620806,0.00017565,2]
[394987254,1764262238251,-317.39188556,0.00017565,2]
[394987255,1764262238306,-61.52709265,0.00017565,2]
[394987256,1764262238317,-500.0,0.00017565,2]
[394987257,1764262238327,-500.0,0.00017565,2]
[394987258,1764262238337,-500.0,0.00017565,2]
[394987259,1764262238347,-500.0,0.00017565,2]
[394987260,1764262238357,-500.0,0.00017565,2]
[394987261,1764262238367,-500.0,0.00017565,2]
[394987262,1764262238377,-500.0,0.00017565,2]
[394987263,1764262238386,-500.0,0.00017565,2]
[394987264,1764262238396,-500.0,0.00017565,2]
[394987265,1764262238405,-500.0,0.00017565,2]
[394987266,1764262238415,-500.0,0.00017565,2]
[394987267,1764262238424,-500.0,0.00017565,2]
[394987268,1764262238434,-500.0,0.00017565,2]
[394987269,1764262238444,-500.0,0.00017565,2]
[394987270,1764262238453,-500.0,0.00017565,2]
[394987271,1764262238463,-500.0,0.00017565,2]
[394987272,1764262238472,-264.98123975,0.00017565,2]
[394987273,1764262238481,-389.76558625,0.00017565,2]
[394987274,1764262238493,-110.23441375,0.00017565,2]
[394987275,1764262238502,-500.0,0.00017565,2]
[394987276,1764262238512,-500.0,0.00017565,2]
[394987278,1764262238522,-500.0,0.00017565,2]
[394987280,1764262238531,-500.0,0.00017565,2]
[394987281,1764262238541,-500.0,0.00017565,2]
[394987283,1764262238551,-500.0,0.00017565,2]
[394987285,1764262238560,-500.0,0.00017565,2]
[394987286,1764262238570,-500.0,0.00017565,2]
[394987288,1764262238579,-500.0,0.00017565,2]
[394987289,1764262238592,-500.0,0.00017565,2]
[394987291,1764262238601,-500.0,0.00017565,2]
[394987293,1764262238611,-500.0,0.00017565,2]
[394987294,1764262238620,-500.0,0.00017565,2]
[394987295,1764262238631,-500.0,0.00017565,2]
[394987296,1764262238640,-500.0,0.00017565,2]
[394987297,1764262238650,-500.0,0.00017565,2]
[394987298,1764262238660,-500.0,0.00017565,2]
[394987299,1764262238671,-880.5949225,0.00017566,2]
[394987300,1764262238681,-7306.89109527,0.00017566,2]
[394987301,1764262238697,-6118.63,0.00017566,2]
[394987302,1764262238707,-3379.8,0.00017566,2]
[394987308,1764262240353,-1193.0,0.0001744,2]
[394987309,1764262240362,-234.5027801,0.00017566,2]
[394987310,1764262240508,-322.35060271,0.00017566,2]
[394987311,1764262240519,-16580.79651796,0.00017566,2]
[394987312,1764262240529,-4480.8035198,0.00017566,2]
[394987313,1764262240540,-949.309992,0.00017566,2]
[394987314,1764262240621,-3517.51348286,0.00017566,2]
[394987315,1764262240632,-2797.83196464,0.00017566,2]
[394987316,1764262240727,-377.58142882,0.00017566,2]
[394987330,1764262243971,-7897.20368414,0.00017566,2]
[394987331,1764262243981,-150.0,0.0001764,2]
[394987332,1764262243990,-166.9942298,0.0001764,2]
[394987333,1764262244000,-622.448,0.00017664,2]
[394987334,1764262244011,-1414.92524019,0.00017691,2]
[394987335,1764262244022,-150.0,0.00017743,2]
[394987336,1764262244032,-222.65612674,0.00017786,2]
[394987337,1764262244043,-1680.0,0.00017796,2]
[394987338,1764262244052,-300.0,0.0001782,2]
[394987339,1764262244062,-300.0,0.0001782,2]
[394987340,1764262244072,-300.0,0.0001782,2]
[394987341,1764262244084,-300.0,0.0001782,2]
[394987342,1764262244093,-344.30028849,0.0001782,2]
[394987343,1764262244103,-857.1452,0.0001782,2]
[394987344,1764262244113,-737.11,0.00017839,2]
[394987345,1764262244123,-200.0,0.00017856,2]
[394987346,1764262244132,-420.0,0.00017861,2]
[394987347,1764262244142,-1000.0,0.000179,2]
[394987348,1764262244152,-168.75138972,0.000179,2]
[394987349,1764262244161,-590.23975418,0.000179,2]
[394987350,1764262244170,-3441.79119326,0.000179,2]
[394987351,1764262244179,-3583.83810821,0.000179,2]
[394987352,1764262244189,-500.0,0.00017973,2]
[394987353,1764262244198,-500.0,0.00017973,2]
[394987354,1764262244207,-500.0,0.00017973,2]
[394987355,1764262244217,-563.7907782,0.00017973,2]
[394987356,1764262244226,-500.0,0.00017982,2]
[394987357,1764262244235,-153.36592313,0.00017982,2]
[394987358,1764262244244,-208.7124507,0.00017989,2]
[394987359,1764262244253,-150.0,0.00017989,2]
[394987360,1764262244262,-150.0,0.00017989,2]
[394987361,1764262244271,-150.0,0.00017989,2]
[394987362,1764262244281,-150.0,0.00017989,2]
[394987363,1764262244290,-150.0,0.00017989,2]
[394987364,1764262244299,-150.0,0.00017989,2]
[394987365,1764262244308,-150.0,0.00017989,2]
[394987366,1764262244317,-500.0,0.00017989,2]
[394987367,1764262244327,-150.0,0.00017989,2]
[394987368,1764262244336,-150.0,0.00017989,2]
[394987369,1764262244344,-1174.0,0.00017989,2]
[394987370,1764262244353,-500.0,0.00017989,2]
[394987371,1764262244363,-500.0,0.00017989,2]
[394987372,1764262244372,-150.0,0.00017989,2]
[394987373,1764262244382,-500.0,0.00017989,2]
[394987374,1764262244391,-150.0,0.00017989,2]
[394987375,1764262244400,-500.0,0.00017989,2]
[394987376,1764262244410,-150.0,0.00017989,2]
[394987377,1764262244419,-500.0,0.00017989,2]
[394987378,1764262244429,-500.0,0.00017989,2]
[394987379,1764262244444,-311.0,0.0001799,2]
[394987380,1764262244454,-300.0,0.0001799,2]
[394987381,1764262244464,-151.0,0.00017997,2]
[394987382,1764262244473,-307.16413271,0.00017999,2]
[394987383,1764262244482,-300.0,0.00017999,2]
[394987384,1764262244492,-300.0,0.00017999,2]
[394987385,1764262244501,-300.0,0.00017999,2]
[394987386,1764262244511,-300.0,0.00017999,2]
[394987387,1764262244520,-300.0,0.00017999,2]
[394987388,1764262244529,-300.0,0.00017999,2]
[394987389,1764262244538,-500.0,0.00017999,2]
[394987390,1764262244548,-372.88895003,0.00017999,2]
[394987391,1764262244557,-261.80713818,0.00017999,2]
[394987392,1764262244566,-256.51708381,0.00017999,2]
[394987393,1764262244575,-500.0,0.00017999,2]
[394987394,1764262244584,-300.0,0.00017999,2]
[394987395,1764262244598,-300.0,0.00017999,2]
[394987396,1764262244607,-300.0,0.00017999,2]
[394987397,1764262244616,-300.0,0.00017999,2]
[394987398,1764262244626,-2576.0,0.00018,2]
[394987399,1764262244637,-150.0,0.00018,2]
[394987400,1764262244647,-150.0,0.00018,2]
[394987401,1764262244656,-150.0,0.00018,2]
[394987402,1764262244668,-150.0,0.00018,2]
[394987403,1764262244677,-150.0,0.00018,2]
[394987404,1764262244686,-150.0,0.00018,2]
[394987405,1764262244696,-150.00000001,0.00018,2]
[394987406,1764262244705,-150.0,0.00018,2]
[394987407,1764262244714,-165542.90370344,0.00018,2]
[394987408,1764262244726,-32189.7079647,0.00018,2]
[394987409,1764262244737,-770.4909195,0.00018,2]
[394987410,1764262244748,-651.73465064,0.00018,2]
[394987420,1764262246337,-27036.62676886,0.00018,2]
[394987422,1764262246605,-643.25831284,0.00018,2]
[394987425,1764262381049,455.0,0.00025,120]
[394987456,1764263029577,887.4,0.00013699,2]
[394987509,1764263431652,-323.33930456,0.00015957,2]
[394987510,1764263431662,-300.0,0.00015957,2]
[394987511,1764263431671,-222.0,0.00015957,2]
[394987512,1764263431680,-191.11960204,0.00016064,2]
[394987513,1764263431689,-178.51824482,0.00016119,2]
[394987514,1764263431702,-151.0,0.00016162,2]
[394987515,1764263431711,-300.0,0.00016163,2]
[394987516,1764263431720,-300.0,0.00016163,2]
[394987517,1764263431729,-1035.17907646,0.00016163,2]
[394987519,1764263437420,-164.82092354,0.00016163,2]
[394987520,1764263437430,-1200.0,0.00016164,2]
[394987521,1764263437440,-179.56195867,0.00016164,2]
[394987522,1764263437452,-261.02226502,0.00016164,2]
[394987523,1764263437461,-500.0,0.00016164,2]
[394987524,1764263437471,-383.26499673,0.00016164,2]
[394987525,1764263437480,-500.0,0.00016164,2]
[394987526,1764263437489,-346.57676487,0.00016164,2]
[394987527,1764263437499,-500.0,0.00016164,2]
[394987528,1764263437509,-174.11750457,0.00016164,2]
[394987529,1764263437518,-500.0,0.00016164,2]
[394987530,1764263437528,-500.0,0.00016164,2]
[394987531,1764263437538,-500.0,0.00016164,2]
[394987532,1764263437547,-500.0,0.00016164,2]
[394987533,1764263437558,-500.0,0.00016164,2]
[394987534,1764263437569,-176.49812398,0.00016164,2]
[394987535,1764263437579,-182.72370444,0.00016164,2]
[394987536,1764263437596,-317.27629556,0.00016164,2]
[394987537,1764263437606,-500.0,0.00016164,2]
[394987538,1764263437617,-500.0,0.00016164,2]
[394987539,1764263437627,-500.0,0.00016164,2]
[394987540,1764263437636,-500.0,0.00016164,2]
[394987541,1764263437648,-9190.0504339,0.00016165,2]
[394987542,1764263437658,-2724.7365,0.00016165,2]
[394987543,1764263437670,-1122.70891671,0.00016165,2]
[394987544,1764263437681,-10808.36529389,0.00016165,2]
[394987545,1764263437694,-259.36743815,0.00016165,2]
[394987595,1764263439569,-2877.10776756,0.00016165,2]
[394987596,1764263439580,-645.32787354,0.00016165,2]
[394987597,1764263439591,-403066.77157625,0.00016165,2]
[394987598,1764263439601,-500.0,0.00016173,2]
[394987599,1764263439611,-286.23034224,0.000162,2]
[394987600,1764263439620,-150.0,0.000162,2]
[394987601,1764263439630,-150.0,0.000162,2]
[394987602,1764263439639,-150.0,0.000162,2]
[394987603,1764263439648,-150.0,0.000162,2]
[394987604,1764263439658,-150.0,0.000162,2]
[394987605,1764263439667,-150.0,0.000162,2]
[394987606,1764263439676,-150.0,0.000162,2]
[394987607,1764263439686,-150.0,0.000162,2]
[394987608,1764263439695,-150.0,0.000162,2]
[394987609,1764263439704,-178.51824482,0.00016244,2]
[394987610,1764263439714,-302.17,0.00016525,2]
[394987611,1764263439723,-685.01,0.0001655,2]
[394987612,1764263439733,-1500.0,0.00016681,2]
[394987613,1764263439743,-165.84,0.0001673,2]
[394987614,1764263439752,-702.35,0.000168,2]
[394987615,1764263439762,-250.0,0.00017,2]
[394987616,1764263439771,-200.0,0.00017041,2]
[394987617,1764263439780,-160.0935679,0.00017099,2]
[394987618,1764263439790,-1000.0,0.00017108,2]
[394987619,1764263439799,-4604.022,0.0001727,2]
[394987620,1764263439808,-909.0,0.0001727,2]
[394987621,1764263439817,-2000.0,0.000173,2]
[394987622,1764263439826,-737.11,0.00017437,2]
[394987623,1764263439836,-150.0,0.0001744,2]
[394987624,1764263439845,-823.0,0.0001744,2]
[394987625,1764263439855,-250.0,0.00017553,2]
[394987626,1764263439864,-300.0,0.00017553,2]
[394987627,1764263439873,-222.65612674,0.00017614,2]
[394987628,1764263439882,-300.0,0.00017641,2]
[394987629,1764263439892,-300.0,0.00017641,2]
[394987630,1764263439901,-300.0,0.00017641,2]
[394987631,1764263439910,-300.0,0.00017641,2]
[394987632,1764263439919,-300.0,0.00017641,2]
[394987633,1764263439929,-266.4902529,0.00017641,2]
[394987634,1764263439939,-420.0,0.00017669,2]
[394987635,1764263439948,-300.0,0.00017669,2]
[394987636,1764263439958,-921.0,0.00017689,2]
[394987637,1764263439967,-737.11,0.00017711,2]
[394987638,1764263439977,-1680.0,0.00017758,2]
[394987639,1764263439986,-497.958,0.00017773,2]
[394987640,1764263439995,-168.0,0.00017838,2]
[394987641,1764263440005,-200.0,0.00017856,2]
[394987642,1764263440015,-292.62,0.00017887,2]
[394987643,1764263440024,-3301.05924137,0.000179,2]
[394987644,1764263440044,-518.75,0.000179,2]
[394987657,1764263443314,-758.29482739,0.000179,2]
[394987658,1764263444103,-3846.36937952,0.000179,2]
[394987659,1764263444113,-165.84,0.00017925,2]
[394987660,1764263444122,-500.0,0.00017973,2]
[394987661,1764263444132,-500.0,0.00017973,2]
[394987662,1764263444141,-176.33851761,0.00017973,2]
[394987663,1764263444151,-500.0,0.00017973,2]
[394987664,1764263444161,-500.0,0.00017973,2]
[394987665,1764263444172,-72.09643803,0.00017973,2]
[394987666,1764263444183,-393.56994063,0.00017973,2]
[394987667,1764263444193,-500.0,0.00017973,2]
[394987668,1764263444202,-500.0,0.00017973,2]
[394987669,1764263444212,-500.0,0.00017973,2]
[394987670,1764263444221,-500.0,0.00017973,2]
[394987671,1764263444230,-500.0,0.00017973,2]
[394987672,1764263444240,-500.0,0.00017973,2]
[394987673,1764263444256,-500.0,0.00017973,2]
[394987674,1764263444267,-500.0,0.00017973,2]
[394987675,1764263444276,-500.0,0.00017973,2]
[394987676,1764263444286,-167.97389079,0.00017973,2]
[394987677,1764263444296,-500.0,0.00017973,2]
[394987678,1764263444306,-500.0,0.00017973,2]
[394987679,1764263444316,-560.43303466,0.00017973,2]
[394987680,1764263444325,-500.0,0.00017973,2]
[394987681,1764263444335,-500.0,0.00017973,2]
[394987682,1764263444345,-500.0,0.00017973,2]
[394987683,1764263444356,-737.11,0.00017985,2]
[394987684,1764263444367,-1000.0,0.00017988,2]
[394987685,1764263444377,-1000.0,0.00017988,2]
[394987686,1764263444387,-168.95413463,0.00017989,2]
[394987687,1764263444398,-150.0,0.00017989,2]
[394987688,1764263444407,-1125.0,0.00017989,2]
[394987689,1764263444417,-500.0,0.00017989,2]
[394987690,1764263444428,-500.0,0.00017989,2]
[394987691,1764263444441,-150.0,0.00017989,2]
[394987692,1764263444451,-150.0,0.00017989,2]
[394987693,1764263444461,-200.0,0.00017989,2]
[394987694,1764263444471,-500.0,0.00017989,2]
[394987695,1764263444480,-150.0,0.00017989,2]
[394987696,1764263444490,-500.0,0.00017989,2]
[394987697,1764263444499,-500.0,0.00017989,2]
[394987698,1764263444509,-151.0,0.00017997,2]
[394987699,1764263444521,-2056.0,0.00018,2]
[394987700,1764263444531,-159.02105363,0.00018,2]
[394987701,1764263444540,-159.77049425,0.00018,2]
[394987702,1764263444551,-402969.40605143,0.00018,2]
[394987705,1764263445797,-759.152318,0.0001781,2]
[394987706,1764263445807,-369.79441878,0.00018,2]
[394987721,1764263874056,-1200.0,0.00016064,2]
[394987722,1764263874078,-300.0,0.00016064,2]
[394987723,1764263874099,-300.0,0.00016064,2]
[394987724,1764263874120,-1200.0,0.00016064,2]
[394987725,1764263874141,-178.51824483,0.00016064,2]
[394987726,1764263874163,-250.0,0.00016065,2]
[394987727,1764263874192,-6571.48175517,0.00016065,2]
[394987764,1764264354200,843.8983374,0.000146,2]
[394987765,1764264378288,500.0,0.00014731,2]
[394987794,1764264631632,-166.66,0.00015854,2]
[394987796,1764264631643,-214.48447579,0.00015899,2]
[394987798,1764264631652,-116.40780512,0.0001591,2]
[394987800,1764264631663,-78.59219488,0.0001591,2]
[394987801,1764264631673,-192.95771867,0.00015965,2]